Cogmind - Beta 17 @@@ ROGUE MODE // 2026.07.28 @ 20:13:40 Player: gorb Result: Destroyed by G-34 Mercenary with Small Laser Performance ------------- Evolutions (0) 0 Regions Visited (1) 200 Robots Destroyed (8) 40 Value Destroyed (141) 141 Prototype IDs (0) 0 Alien Tech Used (0) 0 Bonus (0) 0 TOTAL SCORE: 381 Bonus ------- None Cogmind --------- Core Integrity 0/250 Matter 220/300 Energy 125/125 System Corruption 0% Temperature Cool (12) Movement Core (200) Ox3 Location -10/Materials Parts ------- > --- POWER (1) -------- Light Ion Engine > --- PROPULSION (2) --- (None) > --- UTILITY (2) ------ Small Storage Unit > --- WEAPON (2) ------- Light Assault Rifle Mining Claw > --- INVENTORY (8) ---- Ion Engine Flight Unit Flight Unit Structural Scanner Light Assault Rifle Datajack Peak State ------------ > --- POWER ------------ Light Ion Engine > --- PROPULSION ------- Wheel Wheel > --- UTILITY ---------- Small Storage Unit Core Shielding > --- WEAPON ----------- Assault Rifle Light Assault Rifle > --- INVENTORY -------- Ion Engine Light Treads Light Treads Assault Rifle Datajack Mining Claw [Rating: 7] Favorites ----------- Power Light Ion Engine Engine Light Ion Engine Propulsion Wheel Treads Light Treads Wheel Wheel Utility Small Storage Unit Storage Small Storage Unit Protection Core Shielding Weapon Light Assault Rifle Ballistic Gun Light Assault Rifle Slashing Weapon Mining Claw Special Melee Weapon Datajack Build | -11 -10 ------- Run | Yrd Mat Slots Evolved . | . . Power . | . . Propulsion . | . . Utility . | . . Weapon . | . . Parts Attached 13 | 4 9 Power 2 | . 2 Engine 2 | . 2 Core . | . . Reactor . | . . Propulsion 3 | 3 . Treads 1 | 1 . Leg . | . . Wheel 2 | 2 . Hover . | . . Flight . | . . Utility 2 | 1 1 Device . | . . Storage 1 | 1 . Processor . | . . Hackware . | . . Protection 1 | . 1 Artifact . | . . Weapon 6 | . 6 Energy Gun . | . . Energy Cannon . | . . Ballistic Gun 4 | . 4 Ballistic Cannon . | . . Launcher . | . . Special Weapon . | . . Impact Weapon . | . . Slashing Weapon 1 | . 1 Piercing Weapon . | . . Special Melee Weapon 1 | . 1 Unidentified Prototypes . | . . Parts Lost 5 | . 5 Power 1 | . 1 Propulsion 2 | . 2 Utility 1 | . 1 Weapon 1 | . 1 Highest Loss Streak 5 | . 5 To Critical Strikes . | . . Average Backups 6 | 4 6 Power 1 | 1 1 Propulsion 1 | 1 1 Utility . | . . Weapon 2 | 1 2 Tool/Special . | . . Unused Backups 6 | . 6 Power 1 | . 1 Propulsion 3 | . 3 Utility 1 | . 1 Weapon 1 | . 1 Tool/Special . | . . Average Slot Usage (%) 89 | . 89 Engine 13 | . 13 Wheel 27 | . 27 Storage 14 | . 14 Protection 10 | . 10 Ballistic Gun 15 | . 15 Slashing Weapon 6 | . 6 Peak Build Rating 7 | 3 7 Average Rating 5 | 2 6 On Entrance 1 | . 3 Avg Prop Armor Cover (%) 10 | 10 . Naked Turns . | . . Heaviest Build 12 | 5 12 Greatest Support 20 | 20 20 Greatest Overweight (x) 3 | . 3 Average Overweight (x) . | . . Largest Inventory Capacity 8 | 8 8 Average Capacity 7 | 6 8 Most Carried 8 | 8 8 Average Carried 6 | 5 7 Final Capacity 8 | 8 8 Final Carried 7 | 7 6 Class Distribution -------------------- 100% | Mutant Dominant Class ---------------- Mutant | -10/Materials Resources | -11 -10 ----------- Run | Yrd Mat Matter Collected 304 | 197 107 Remotely . | . . Salvage Created 150 | . 150 Parts 15 | . 15 Haulers Intercepted . | . . Recyclers Shooed . | . . Parts Field Recycled . | . . Retrieved Matter . | . . Parts Self-Destructed . | . . Prevented . | . . Parts Restored . | . . Kills | -11 -10 ------- Run | Yrd Mat Combat Hostiles Destroyed 8 | . 8 Guns 8 | . 8 Classes Destroyed 2 | . 2 Swarmer 6 | . 6 Grunt 2 | . 2 Best Kill Streak 6 | . 6 Combat Bots Only 6 | . 6 Max Kills in Single Turn 1 | . 1 Gunslinging . | . . Exploded . | . . Melee . | . . Uniques/NPCs Destroyed . | . . Combat | -11 -10 -------- Run | Yrd Mat Hostile Shots Fired 81 | . 81 Missed 15 | . 15 Hits 66 | . 66 Projectile 66 | . 66 Critical Strikes 2 | . 2 Actively Blocked 2 | . 2 Damage Taken 688 | . 688 Core 259 | . 259 Absorbed by Shields . | . . Redirected to Shielding 50 | . 50 Core Remaining (%) 100 | 100 . Volleys Fired 36 | . 36 Largest 2 | . 2 Hottest 40 | . 40 Shots Fired 47 | . 47 Gun 47 | . 47 Cannon . | . . Launcher . | . . Special . | . . Kinetic 47 | . 47 Thermal . | . . Explosive . | . . Electromagnetic . | . . Robot Hit Streak 13 | . 13 Robot Miss Streak 4 | . 4 Penetration Max . | . . Secondary Targets 2 | . 2 Max Gunslinging Chain 1 | . 1 Shots Hit Robots 30 | . 30 Core Hits 16 | . 16 Critical Kills . | . . Critical Parts Destroyed . | . . Critical Strikes . | . . Melee Attacks 8 | . 8 Impact . | . . Slashing 8 | . 8 Piercing . | . . Sneak Attacks . | . . Combat Hostiles . | . . Follow-up Attacks . | . . Damage Inflicted 334 | . 334 Guns 288 | . 288 Cannons . | . . Explosions . | . . Melee 46 | . 46 Ramming . | . . Kinetic 288 | . 288 Thermal . | . . Explosive . | . . Electromagnetic . | . . Impact . | . . Slashing 46 | . 46 Piercing . | . . Highest Corruption . | . . Average Corruption . | . . Corruption Purged . | . . Corruption Blocked . | . . Overload Shots . | . . Overflow Damage . | . . Projectiles . | . . Explosions . | . . Melee . | . . Knockbacks . | . . Impact . | . . Kinetic . | . . Secondary . | . . Self-Inflicted Damage . | . . Shots . | . . Rammed . | . . Targets Rammed . | . . Kicked . | . . Crushed . | . . Highest Temperature 9 | . 9 Average Temperature 8 | . 8 Received Heat Transfer 234 | . 234 Siege Activations . | . . Martial Activations . | . . Shielding Activations . | . . Robots Disrupted . | . . Combat Hostiles . | . . Robots Corrupted . | . . Combat Hostiles . | . . Parts Fried . | . . Impact Corruptions . | . . Robots Melted . | . . Combat Hostiles . | . . Parts Melted . | . . Heat Transferred . | . . Parts Sabotaged . | . . Parts Stolen . | . . Parts Stripped . | . . Power Chain Reactions . | . . Alert | -11 -10 ------- Run | Yrd Mat Maximum Alert Level . | . . Low Security (%) 100 | 100 100 Level 1 . | . . Level 2 . | . . Level 3 . | . . Level 4 . | . . Level 5 . | . . High Security . | . . Max Security . | . . Peak Influence 130 | . 130 Initial . | . . Average 40 | . 45 Influence Increases 252 | . 252 Destroy 0b10 Robot/C 160 | . 160 Destroy Leader 30 | . 30 Destroy Structure 2 | . 2 Lose Combat Pursuer 60 | . 60 Influence Decreases 202 | . 202 Time Decay 152 | . 152 Lost Part 50 | . 50 Squads Dispatched 2 | . 2 Investigation . | . . Extermination . | . . Reinforcement 2 | . 2 Assault . | . . Garrison . | . . Intercept . | . . Searches Triggered . | . . Construction Impeded . | . . Haulers Reinforced . | . . Active Scanning Responses . | . . Cargo Convoy Interrupts . | . . Stealth | -11 -10 --------- Run | Yrd Mat Distress Signals . | . . Communications Jammed . | . . Distress Signals . | . . Times Spotted 25 | . 25 Peak Tracking Total 6 | . 6 Tactical Retreats 2 | . 2 Traps | -11 -10 ------- Run | Yrd Mat Traps Triggered 1 | . 1 Indirectly . | . . Trap Hack Attempts 15 | . 15 Triggered . | . . Disarmed 1 | . 1 Reprogrammed . | . . Reused . | . . Traps Extracted . | . . Installed . | . . Triggered . | . . Machines | -11 -10 ---------- Run | Yrd Mat Machines Disabled . | . . Max in Single Turn . | . . Machines Repaired . | . . Machines Dismantled . | . . Machines Sabotaged . | . . Overloaded Fab Kills . | . . Hacking | -11 -10 --------- Run | Yrd Mat Machines Accessed 3 | . 3 Terminals 3 | . 3 Fabricators . | . . Repair Stations . | . . Recycling Units . | . . Scanalyzers . | . . Garrison Access . | . . Total Hacks 5 | . 5 Successful 3 | . 3 Failed 2 | . 2 Catastrophic . | . . Database Lockouts . | . . Manual 1 | . 1 Terminals 5 | . 5 Fabricators . | . . Repair Stations . | . . Recycling Units . | . . Scanalyzers . | . . Garrison Access . | . . Terminal Hacks 3 | . 3 Record 1 | . 1 Alert Level 1 | . 1 Zone Layout 1 | . 1 Fabricator Hacks . | . . Repair Station Hacks . | . . Recycling Unit Hacks . | . . Scanalyzer . | . . Garrison Access Hacks . | . . Unauthorized Hacks . | . . Terminals . | . . Fabricators . | . . Repair Stations . | . . Recycling Units . | . . Scanalyzers . | . . Garrison Access . | . . Data Cores Recovered . | . . Used . | . . Hacking Detections 1 | . 1 Full Trace Events . | . . Feedback Events . | . . Feedback Blocked . | . . Robot Schematics Acquired . | . . Robots Built . | . . Authchips . | . . Time . | . . Total Robot Build Rating . | . . Part Schematics Acquired . | . . Parts Built . | . . Authchips . | . . Time . | . . Total Part Build Rating . | . . Part Studies Acquired . | . . Parts Repaired . | . . Time . | . . Parts Recycled . | . . Recycled Matter . | . . Retrieved Matter . | . . Retrieved Components . | . . Parts Scanalyzed . | . . Part Schematics Acquired . | . . Parts Damaged . | . . Bothacking | -11 -10 ------------ Run | Yrd Mat Used RIF Installer . | . . Robots Hacked . | . . Non-combat . | . . Combat . | . . Robot Hacks Applied . | . . Relay Couplers Released . | . . Fabnet Peak Effective % . | . . Robots Rewired . | . . Allies Hacked . | . . Hacks Repelled . | . . Allies | -11 -10 -------- Run | Yrd Mat Total Allies . | . . Largest Group . | . . Highest-Rated Group . | . . Highest-Rated Ally . | . . Total Orders . | . . Ally Attacks . | . . Total Damage . | . . Kills . | . . Allies Corrupted . | . . Allies Melted . | . . Intel | -11 -10 ------- Run | Yrd Mat Active Infowar (turns) . | . . Robot Analysis Total . | . . Derelict Logs Recovered . | . . Drone Launches . | . . Drone Recoveries . | . . Exploration | -11 -10 ------------- Run | Yrd Mat Turns Passed 655 | 73 582 Spaces Moved 609 | 63 546 Core 17 | 13 4 Treads 17 | 17 . Legs . | . . Wheels 575 | 33 542 Hover . | . . Flight . | . . Fastest Speed 50 | 50 80 Average Speed 82 | 95 80 Slowest Speed 200 | 160 200 Overloaded Moves . | . . Propulsion Burnouts . | . . Robots Hopped . | . . Potential Cave-ins 2 | . 2 Cave-ins Triggered . | . . Exploration Rate (%) 38 | 2 74 Regions Visited 1 Branch Regions . Pre-discovered Areas . | . . Known Exits Taken . | . . Unknown Exits Taken 1 | 1 . Scrap Searched . | . . Spaces Dug 4 | . 4 Terrain Destroyed 4 | . 4 Melee 4 | . 4 Projectile . | . . AOE . | . . Terrain Rammed . | . . Walls Destroyed . | . . Machines Disabled . | . . Actions | -11 -10 --------- Run | Yrd Mat Total 706 | 75 631 Wait 3 | . 3 Move 608 | 62 546 Hop . | . . Pick Up 17 | 8 9 Fast Attach 2 | 2 . Attach 9 | 2 7 Detach 1 | 1 . Swap 3 | . 3 Drop 4 | . 4 Fire 36 | . 36 Melee 8 | . 8 Ram . | . . Kick . | . . Crush . | . . Escape Stasis . | . . Rewire . | . . Trap 15 | . 15 Miscellaneous . | . . Route ------- -11/Scrapyard -10/Materials (discovered 2 exits: [*Mat] / [*Min]) History --------- Turn | Location | Event 12 | -11/Scrapyard | Discovered new exit (range 15) 74 | -11/Scrapyard | Entered Materials 119 | -10/Materials | Discovered new exit (range 5) 308 | -10/Materials | Build established: Mutant 397 | -10/Materials | Discovered new exit (range 9) 629 | -10/Materials | Core integrity fell below 50% 647 | -10/Materials | Core integrity fell below 20% 656 | -10/Materials | Destroyed by G-34 Mercenary with Small Laser Last Messages --------------- An explosion rips through the floor. Acquired Structural Scanner. O-16 Technician: "IFF HANDSHAKE FAILED. SECURING TERMINAL." O-16 Technician uses terminal to summon reinforcements. ALERT: Hostiles spotted, dispatching reinforcements to Terminal M007. O-16 Technician locks terminal. K-01 Serf cleans the Recycling Unit. K-01 Serf cleans the Electrolysis Chamber. [Achievement: That Tickles] Lgt. Ion Engine destroyed. Electrolysis Chamber disabled. Lgt. Assault Rifle destroyed. G-47 Trooper destroyed. Wheel destroyed. G-34 Mercenary destroyed. Acquired 72 matter. Core Shielding destroyed. Map ----- +----------------------------------------------------+ | | | | | | | | | | | | | | | | | | | | | | | | | | | | | | | | | | | ?????????????###############?????????????????????? | | ?????????????# #?????????????????????? | | ?????????????# #?????????????????????? | | ?????????????# #?????????????????????? | | ?????????????# #?????????????????????? | | ?############# #?????????????????????? | | ?# + #?????????????????????? | | ?# ##############+###############?????????????? | | ?# #??#####????# *@g[! ##############? | | ?# #?##"""##???# ####ug """ # # #? | | ?#### ###"|||"##??# #??# "" # # "" #? | | ##### ##"" ""#??# #??# """ # # Y" #? | | + + #??# #??# + + "" #? | | # # < #??# #??# # # #? | | # # +?? #??# !!] # # """ #? | | / + #?## #??# !]] # # """ #? | | # ## ##??# #??# !] # # """ #? | | # ### ##???# #??########## # #? | | ##### ###### #??????????#T ##########? | | ! #| ##########?## ########### | | # # #### | | # # "T" " ## | | # """ """ """ # #### | | # """ """ """ # ! [#??#########+##### | | # """ """ """ # ####### | | + + """ # #""" | | # # """ # """ #"R """ | | ### #######+## # """ # """ #""" """ | | !] #?# ## ! ## # # """ # "" """ | | !]!#?# ## ## ########## # | | !!!#?# ## "T" ## # !!!# | | #?# ## """ ## + !!!#########+## | | #####?# ## + # !!!#????### ^ | +----------------------------------------------------+ Best States ------------- Heat Dissipation 25 Energy Generation 10 Energy Capacity 125 Matter Stores 237 Matter Capacity 300 Sight Range 16 Terrain Scan Density 10 Core Shielding 20 Evasion (%) 50 Recoil Reduction 1 Item Schematics ----------------- None Robot Schematics ------------------ None Fabricated ------------ Nothing Repaired ---------- Nothing Studied --------- None Alien Tech Used ----------------- None Achievements -------------- That Tickles Challenges ------------ None Game ------ Seed SurveybotCloakKinecellerator Manual? 0 Play Time 00:11:33 Cumulative 48.4 hours Start 2026.07.28 @ 20:05:42 End 2026.07.28 @ 20:13:40 Sessions 1 Manual Loads 0 Difficulty Rogue Special Mode None Game No. 86 Rogue 84 Adventurer 0 Explorer 2 Win Type - Total 0 Types 0/0/0/0/0/0/0/0/0/0 Lore% 26 Gallery% 29 Achievement% 21 Wizard Run 0 Options --------- Layout 1 ASCII 0 Keyboard 0 Movement Mouse Keybinds 0 Fullscreen 1 Font 24/Smallcaps Map View 50x35 Zoom Use 0% Tactical HUD 0 Map Filters NONE Filters NONE Steam 1 RUN: 53bc5932-ac04-4466-afc0-c91176590825